[Event "Polish Youth B18 Championship 2023"]
[Site "Jastrzebia Gora"]
[Date "2023.03.13"]
[Round "2.16"]
[White "Wesolek, Krzysztof"]
[Black "Malik, Maciej"]
[Result "0-1"]
[ECO "B40"]
[WhiteElo "1765"]
[BlackElo "2163"]
[Annotator "TA"]
[PlyCount "121"]
[EventDate "2023.03.11"]
[EventType "swiss"]
[EventCountry "POL"]
[SourceTitle "playchess.com"]
[Source "ChessBase"]
[SourceQuality "1"]
[TimeControl "40/5400+30:1800+30"]

{[%evp 9,121,45,73,22,31,15,27,10,9,13,34,10,22,23,13,17,82,40,33,34,52,53,85,68,113,113,108,105,140,112,152,79,124,14,17,-54,-58,-111,-104,-200,-194,-631,-625,-550,-222,-217,-220,-250,-243,-431,-300,-287,-292,-293,-285,-310,-319,-427,-428,-405,-346,-325,-293,-380,-271,-335,-317,-335,-288,-344,-344,-344,-343,-337,-342,-341,-313,-304,-273,-295,-287,-271,-260,-255,-256,-322,-310,-466,-458,-504,-474,-498,-505,-509,-464,-500,-488,-448,-410,-476,-505,-478,-491,-558,-538,-622,0,-554,-532,-818,-791,-2067,-1776,-1679]} 1. e4 {[%emt 0:00:01]} c5 {[%emt 0:00:48]} 2. Nf3 {[%emt 0:00:06]} e6 {[%emt 0:00:39]} 3. d4 {[%emt 0:01:02]} cxd4 {[%emt 0:00:05]} 4. c3 {[%emt 0:00:05]} d3 {[%emt 0:09:34]} 5. Bxd3 {[%emt 0:00:08]} Nc6 {[%emt 0:00:12]} 6. Be3 {[%emt 0:01:37] B40: Sicilian: 2...e6, Unusual lines.} (6. O-O $16) 6... Nf6 $11 {[%emt 0:08:44]} 7. h3 {[%emt 0:05:21]} Qc7 {[%emt 0:03:39]} 8. Nbd2 {[%emt 0:05:29] White has an edge.} Be7 {[%emt 0:03:56]} 9. Qe2 {[%emt 0:13:18]} d6 {[%emt 0:04:26]} 10. O-O {[%emt 0:01:00] [#]} O-O $146 {[%emt 0:02:48]} ({Predecessor:} 10... d5 11. Rac1 O-O 12. Rfd1 Rd8 13. Nd4 Bd7 14. Nxc6 Bxc6 15. exd5 Bxd5 16. c4 Bc6 {0-1 Buendia Pacheco,R-Patino Garcia,C (1830) Pan American-ch U16 Girls 2014 (1)}) 11. Rad1 {[%emt 0:06:06]} a6 {[%emt 0:12:48]} 12. Bb1 {[%emt 0:21:52]} d5 {[%emt 0:14:35]} (12... b5 $11 {remains equal.}) 13. exd5 {[%emt 0:05:46]} Nxd5 {[%emt 0:00:19]} 14. Qd3 {[%emt 0:07:06][%csl Gb1][%cal Rd3h7]} f5 {[%emt 0:00:55]} 15. Rfe1 {[%emt 0:12:46]} b5 {[%emt 0:16:29]} 16. Nb3 {[%emt 0:06:39]} Nd8 {[%emt 0:05:45]} 17. Nbd4 {[%emt 0:01:33][%cal Od4f5] Strongly threatening Nxf5!} Nxe3 {[%emt 0:03:12]} 18. Rxe3 {[%emt 0:00:34]} Bc5 {[%emt 0:01:02]} 19. Rde1 {[%emt 0:01:16]} Bd6 {[%emt 0:06:53]} 20. Ne5 {[%emt 0:02:57]} (20. a3 $142) 20... Bb7 {[%emt 0:00:20] [#]} 21. Ndf3 {[%emt 0:02:23] Excellent horsemanship.} ({White should try} 21. Bc2 $1 $16) 21... Bd5 {[%emt 0:00:52]} 22. Rd1 {[%emt 0:02:24]} (22. Qd1 $11) 22... Nb7 $15 {[%emt 0:00:25][%cal Bd8b7,Bb7c5,Bc5e4][%mdl 32]} 23. g4 {[%emt 0:01:46] White is on the road to losing.} (23. Rde1 $15) 23... Nc5 $36 {[%emt 0:01:16][%mdl 2048] Black is in control.} 24. Qd2 {[%emt 0:00:01] [#]} (24. Qe2 $17) 24... Ne4 $1 $19 {[%emt 0:01:09]} 25. Qd4 (25. Qe1 Bxe5 26. Nxe5) 25... Bc5 {[%emt 0:00:49]} 26. Qd3 {[%emt 0:01:13]} Bxe3 {[%emt 0:00:43]} (26... Rad8 $142 {[%cal Oe4f2] Threatens to win with ...Nxf2!} 27. Qe2 Nxf2 28. Qxf2 f4 {[%mdl 64] Pin}) 27. Qxe3 {[%emt 0:00:23]} Rad8 {[%emt 0:00:18]} 28. gxf5 {[%emt 0:00:53]} exf5 {[%emt 0:00:09] White must now prevent ...Rfe8.} 29. Qf4 $2 {[%emt 0:00:40]} (29. a3 {was called for.}) 29... Bb7 {[%emt 0:01:04]} 30. Rxd8 {[%emt 0:00:18]} Qxd8 {[%emt 0:00:07]} (30... Rxd8 $2 {too greedy.} 31. Bc2 $19) 31. Bc2 {[%emt 0:00:11] Prevents Qd1+} Bd5 {[%emt 0:00:27]} 32. a3 {[%emt 0:00:52]} Qf6 {[%emt 0:01:00]} 33. Nd7 {[%emt 0:00:38]} Qg6+ {[%emt 0:00:01]} 34. Kh2 {[%emt 0:00:32]} Rd8 {[%emt 0:00:28]} 35. Nde5 {[%emt 0:00:32]} Qf6 {[%emt 0:00:30]} 36. Nd4 {[%emt 0:00:18]} g6 {[%emt 0:01:05][%cal Oe4f2] ...Nxf2! is the strong threat.} 37. Bxe4 {[%emt 0:00:41]} Bxe4 {[%emt 0:00:05]} 38. f3 {[%emt 0:00:23]} Bd5 {[%emt 0:00:48] aiming for ...Re8.} 39. Ng4 {[%emt 0:00:08]} Qd6 {[%emt 0:00:18]} (39... fxg4 $2 40. Qxf6 Rf8 41. Qd6 $18) 40. Qxd6 {[%emt 0:00:00]} Rxd6 {[%emt 0:00:00][%mdl 4096] Endgame KRB-KNN} 41. Ne5 {[%emt 0:01:11]} Kg7 {[%emt 0:03:48]} 42. Kg3 {[%emt 0:05:42]} Kf6 {[%emt 0:00:42]} 43. Nd3 {[%emt 0:00:37]} Bb7 {[%emt 0:06:46]} 44. Nc5 {[%emt 0:06:09]} Bc8 {[%emt 0:00:09]} 45. f4 {[%emt 0:06:17]} Rd5 {[%emt 0:01:59]} 46. Nd3 {[%emt 0:00:34]} Rd8 {[%emt 0:02:04]} 47. Nc5 {[%emt 0:02:24]} Re8 {[%emt 0:01:46]} 48. Kf3 {[%emt 0:02:09] Dodges Re3+} (48. Kf2 $142) 48... Re1 {[%emt 0:01:48]} 49. a4 {[%emt 0:03:07]} bxa4 {[%emt 0:02:16]} 50. Nxa4 {[%emt 0:00:02]} Bb7+ {[%emt 0:00:48]} 51. Kf2 {[%emt 0:00:38]} Ra1 {[%emt 0:02:07]} 52. b3 {[%emt 0:00:58]} Ke7 {[%emt 0:04:55]} 53. Nc5 {[%emt 0:01:46]} Bc8 {[%emt 0:00:16]} 54. c4 {[%emt 0:03:04]} Kd6 {[%emt 0:00:42]} 55. Nd3 {[%emt 0:00:15]} Rh1 {[%emt 0:01:06]} 56. Ne5 {[%emt 0:01:28]} Rh2+ {[%emt 0:02:54]} 57. Kg3 {[%emt 0:00:16]} Rh1 {[%emt 0:01:26]} ({Better is} 57... Rd2 $19 58. Ndc6 Bb7) 58. b4 $2 {[%emt 0:00:31][%mdl 8192]} (58. Kf2 $1 $11 {and White stays safe.} Rh2+ 59. Ke3) 58... Rb1 {[%emt 0:01:07] Black is clearly winning.} 59. b5 {[%emt 0:00:41]} a5 {[%emt 0:00:29]} 60. Nd3 {[%emt 0:01:25]} Rd1 {[%emt 0:01:09]} 61. c5+ {[%emt 0:00:10] Weighted Error Value: White=0.62/Black=0.34} 0-1

[Event "Polish Youth B18 Championship 2023"]
[Site "Jastrzebia Gora"]
[Date "2023.03.13"]
[Round "2.17"]
[White "Kolodziejski, Piotr"]
[Black "Pieczulis, Blazej"]
[Result "0-1"]
[ECO "B10"]
[WhiteElo "2118"]
[BlackElo "1784"]
[Annotator "TA"]
[PlyCount "52"]
[EventDate "2023.03.11"]
[EventType "swiss"]
[EventCountry "POL"]
[SourceTitle "playchess.com"]
[Source "ChessBase"]
[SourceQuality "1"]
[TimeControl "40/5400+30:1800+30"]

{[%evp 9,52,27,25,30,23,20,45,25,32,27,31,12,21,11,12,8,26,30,25,14,13,-68,-63,-65,-37,-71,-76,-136,-104,-133,-141,-186,-201,-264,-246,-289,-271,-274,-261,-592,-245,-227,-236,-29994,-29995]} 1. e4 {[%emt 0:00:02]} c6 {[%emt 0:00:13]} 2. d3 {[%emt 0:00:11]} d5 {[%emt 0:00:40]} 3. Nf3 {[%emt 0:00:06]} Bg4 {[%emt 0:01:49]} 4. h3 {[%emt 0:00:09]} Bxf3 {[%emt 0:00:14]} 5. Qxf3 {[%emt 0:00:06]} e6 {[%emt 0:00:47]} 6. Be2 {[%emt 0:04:37] B10: Caro-Kann: 2 d3 and 2 c4.} Nd7 {[%emt 0:02:43]} 7. O-O {[%emt 0:02:58]} g6 {[%emt 0:06:08]} 8. c3 {[%emt 0:06:34] White is slightly better.} Bg7 {[%emt 0:04:19]} 9. Nd2 {[%emt 0:05:44]} Ne7 {[%emt 0:03:27] [#]} 10. Re1 $146 {[%emt 0:02:59]} ({Predecessor:} 10. d4 Qc7 11. Nb3 O-O 12. exd5 cxd5 13. Bf4 Qb6 14. Bd3 a5 15. Qe2 a4 16. Nc1 Rfc8 17. a3 Nc6 {½-½ Hennings,A (2415)-Boehnisch,M (2335) Baukombinat Leipzig 1984 (1)}) 10... Qc7 {[%emt 0:04:41]} 11. Nf1 {[%emt 0:02:08]} O-O {[%emt 0:03:47]} 12. h4 {[%emt 0:05:53]} f5 {[%emt 0:14:22]} 13. exf5 {[%emt 0:09:05]} Nxf5 {[%emt 0:01:29][%cal Of5d4]} 14. Qh3 {[%emt 0:02:01]} Rae8 {[%emt 0:10:33]} 15. Ne3 {[%emt 0:10:56]} ({White should play} 15. h5 $11) 15... d4 $15 {[%emt 0:11:19]} 16. cxd4 {[%emt 0:12:22]} Bxd4 {[%emt 0:03:21]} (16... Nxd4 {looks sharper.} 17. Bd1 Nc5 18. Nc2 Rd8) 17. Bd1 {[%emt 0:06:59]} Ne5 {[%emt 0:08:30] Excellent horsemanship.} 18. Bc2 {[%emt 0:14:37]} ({White should try} 18. Nxf5 exf5 19. Be3) 18... h5 {[%emt 0:03:31]} 19. Re2 {[%emt 0:01:42]} Kh7 {[%emt 0:05:31] Black has more active pieces.} 20. Rb1 {[%emt 0:02:27] [#]} Qd8 $1 {[%emt 0:02:23]} 21. Nxf5 {[%emt 0:00:42]} Rxf5 {[%emt 0:00:06]} ({Weaker is} 21... exf5 22. Bg5 Ng4 23. Bxd8 $19) 22. Be3 {[%emt 0:01:28]} Ng4 {[%emt 0:00:22] Hoping for ...Ref8.} 23. Qg3 {[%emt 0:04:17]} Ref8 {[%emt 0:01:05]} 24. Bb3 $2 {[%emt 0:01:13]} (24. Bxd4 {nothing else works.} Qxd4 25. Rf1) 24... Bxe3 {[%emt 0:03:21]} (24... Rxf2 $142 25. Bxf2 Rxf2 26. Rxf2 Bxf2+ 27. Qxf2 Nxf2 28. Kxf2 Qxh4+ 29. Kf3 Qg4+ 30. Kf2 Qf4+ 31. Kg1 Qd4+ 32. Kh1 Kh6) 25. fxe3 $19 {[%emt 0:00:06]} Qxd3 26. Rbe1 {[%emt 0:00:19] [#]} (26. Ree1 $19 R5f6 27. Rbc1) 26... Qxe2 $3 {[%emt 0:00:16][%mdl 576] Deflection, Back Rank.   Weighted Error Value: White=0.63/Black=0.35} 0-1

[Event "Polish Youth B18 Championship 2023"]
[Site "Jastrzebia Gora"]
[Date "2023.03.13"]
[Round "2.18"]
[White "Bem, Tymoteusz"]
[Black "Stachecki, Mikolaj"]
[Result "0-1"]
[ECO "E81"]
[WhiteElo "1748"]
[BlackElo "2015"]
[Annotator "TA"]
[PlyCount "72"]
[EventDate "2023.03.11"]
[EventType "swiss"]
[EventCountry "POL"]
[SourceTitle "playchess.com"]
[Source "ChessBase"]
[SourceQuality "1"]
[TimeControl "40/5400+30:1800+30"]

{[%evp 16,72,52,-1,4,6,11,10,0,-33,-29,-29,-26,-33,-31,-28,-43,-39,-31,-35,149,158,150,129,154,141,122,15,214,219,2298,-97,-23,-127,-83,-237,-106,-108,-66,-105,-83,-78,0,-149,-49,-162,-189,-529,-510,-1164,-1146,-1448,-1390,-2231,-2225,-2064,-2141,-1487,-1389]} 1. d4 {[%emt 0:02:25]} Nf6 {[%emt 0:00:17]} 2. c4 {[%emt 0:00:30]} g6 {[%emt 0:00:13]} 3. Nc3 {[%emt 0:00:29]} Bg7 {[%emt 0:00:14]} 4. e4 {[%emt 0:00:23]} d6 {[%emt 0:00:11]} 5. f3 {[%emt 0:00:07]} O-O {[%emt 0:00:17]} 6. Be3 {[%emt 0:00:10]} a6 {[%emt 0:00:19]} 7. Qd2 {[%emt 0:00:22]} Nbd7 {[%emt 0:00:09][%cal Bb8d7,Bd7b6,Bb6a4,Ba4c3][%mdl 32]} 8. Nh3 {[%emt 0:00:27]} c5 {[%emt 0:00:14]} 9. d5 {[%emt 0:00:32] [#] The main line 9.d5 scores better than 9.Nf2.} (9. dxc5 $14 Nxc5 10. Nf2) 9... b5 $1 $11 {[%emt 0:01:23] E81: King's Indian: Sämisch: 6th move deviations (including 6 Be3 c6).} 10. cxb5 {[%emt 0:03:47]} Qa5 {[%emt 0:00:26]} 11. Nf2 {[%emt 0:04:10]} Nb6 {[%emt 0:01:37] The position is equal.} 12. Be2 {[%emt 0:24:50]} Nfd7 {[%emt 0:03:06]} 13. Bh6 {[%emt 0:11:12]} Bxh6 {[%emt 0:01:39]} 14. Qxh6 {[%emt 0:00:08]} Na4 {[%emt 0:00:16] [#]} 15. Rc1 $146 {[%emt 0:05:26]} ({Predecessor:} 15. Qd2 Nxc3 16. b6 Nxb6 17. Qxc3 Qxc3+ 18. bxc3 Bd7 19. c4 Rfb8 20. Kd2 Rb7 21. Rab1 {0-1 Bhambure,S (2291)-Fedorov,A (2551) Romanian op Alba Iulia 2019 (1)}) 15... axb5 {[%emt 0:16:18]} 16. h4 {[%emt 0:05:02]} Nxc3 {[%emt 0:18:00]} (16... Nxb2 17. Bxb5 Qb4 18. Bxd7 $16) 17. bxc3 {[%emt 0:01:10]} Rd8 $2 {[%emt 0:12:39]} (17... f6 $15 {keeps the upper hand.}) 18. h5 $16 {[%emt 0:18:22] Strongly threatening hxg6.} Nf8 {[%emt 0:00:17]} (18... Nf6 19. hxg6 fxg6 20. Bd3) 19. f4 {[%emt 0:02:24][%cal Bf3f4,Bf4f5][%mdl 32] Threatens to win with hxg6.} b4 {[%emt 0:10:12] [#]} 20. f5 $1 {[%emt 0:01:53][%mdl 512]} bxc3 {[%emt 0:01:16]} 21. Ng4 {[%emt 0:02:12]} (21. Rc2 $16 Qb4 22. hxg6 fxg6 23. fxg6) 21... Qxa2 $2 {[%emt 0:15:26]} (21... gxf5 22. Qg5+ Kh8 23. Nh6 (23. exf5 Nd7 $17) 23... c2+ 24. Kf2 Ng6 25. Nxf7+ Kg7 26. hxg6) (21... c2+ $11 {and Black is okay.} 22. Kf1 Qc3) 22. Rd1 $1 $18 {[%emt 0:05:01] hxg6 is the strong threat.} (22. Rxc3 Qb2 23. Qe3 Ra1+ 24. Bd1 Qxg2 $17) (22. hxg6 fxg6 23. Rd1 c2 $17) 22... c2 $2 {[%emt 0:00:33]} (22... gxf5 23. Qg5+ Kh8 24. Nh6 (24. exf5 $2 Nd7 $19) 24... Ng6 25. Nxf7+ Kg8 26. hxg6) (22... Qb2) 23. Rc1 $2 {[%emt 0:00:12] [#]} (23. f6 $1 $18 {[%csl Gf6][%cal Rh6g7]} cxd1=Q+ 24. Bxd1 Qa5+ 25. Kf1 Ba6+ 26. Kf2 exf6 27. Nxf6+ Kh8 28. hxg6 Qd2+ 29. Qxd2) 23... Qb2 {[%emt 0:01:47] Against Qg7+} (23... gxf5 24. Qg5+ Kh8 25. Nh6 (25. exf5 Qb2 $17) 25... Qa5+ 26. Kf2 Ng6 27. Nxf7+ Kg7 28. hxg6) ({Black should play} 23... Qa5+ $1 $17 24. Kf2 Qc3) 24. hxg6 {[%emt 0:02:49]} (24. O-O $1 $11 Qd4+ 25. Kh1) 24... fxg6 {[%emt 0:00:37]} 25. Qg5 $2 {[%emt 0:03:15] [#]} (25. O-O $17 {was the only chance.} gxf5 26. exf5) 25... Ra1 {[%emt 0:05:42]} (25... Qb4+ $1 $19 26. Qd2 Kg7 27. fxg6 Nxg6) 26. Kf2 $17 {[%emt 0:01:25]} Qd4+ {[%emt 0:01:09]} 27. Kg3 $1 {[%emt 0:01:10]} Rxc1 {[%emt 0:01:18]} (27... Ra3+ $6 28. Kh2 Ra7 29. Rxc2 $15 (29. Nh6+ $2 Kg7 $19)) 28. Rxc1 {[%emt 0:01:03]} Re8 {[%emt 0:04:18]} (28... Qxe4 $2 29. Bf3 Qd4 30. Qxe7 Bxf5 31. Nh6+ (31. Qxd8 Bxg4 {[%mdl 64] Remove Defender} 32. Bxg4 Qe3+ 33. Kh4 Qh6+ 34. Kg3 Qe3+ 35. Kh4 Qh6+ 36. Kg3 Qe3+ $11) 31... Kh8 32. Nf7+ (32. Qxd8 Qe5+ 33. Kf2 Qd4+ 34. Kg3 Qe5+ 35. Kf2 Qd4+ 36. Kg3 $11) 32... Kg8 33. Nxd8 Qe5+ 34. Qxe5 dxe5 35. Nb7 $18) (28... Qc3+ $17 29. Kh2 Qg7) 29. Bf3 (29. Bb5 $1 $11 Bd7 30. fxg6 Qc3+ 31. Kh2 Bxb5 32. Rxc2) 29... h5 {[%emt 0:03:30]} (29... Qb2 $17 30. Kh2 Kh8) 30. Nh6+ {[%emt 0:02:16]} (30. Ne3 $1 $15) 30... Kg7 $19 {[%emt 0:00:05]} 31. Bxh5 $2 {[%emt 0:01:37]} (31. Rxc2 $2 {perishes.} Qf6 32. Qxf6+ (32. Qf4 $2 g5 $19) 32... exf6 $19) (31. fxg6 h4+ 32. Kxh4) 31... Qf6 {[%emt 0:00:24][%mdl 64] Deflection. Black is clearly winning.} ({Weaker is} 31... Qxe4 32. Bxg6 Qe5+ 33. Kg4 $18) 32. Qe3 {[%emt 0:00:28]} (32. Qxf6+ $142 exf6 33. Ng4 gxh5 34. Nf2) 32... gxh5 {[%emt 0:00:15]} 33. Rh1 {[%emt 0:00:45]} Qxh6 {[%emt 0:00:17]} 34. Qc3+ {[%emt 0:00:00]} Kf7 {[%emt 0:00:57] ...Nd7 would be deadly.} 35. Qxc2 {[%emt 0:00:20]} Qe3+ {[%emt 0:00:40]} 36. Kh2 {[%emt 0:00:03]} Nd7 {[%emt 0:00:18] Quite a comeback for Black. Artfully played by Stachecki.   Weighted Error Value: White=1.30/Black=0.45} 0-1

[Event "Polish Youth B18 Championship 2023"]
[Site "Jastrzebia Gora"]
[Date "2023.03.13"]
[Round "2.19"]
[White "Syrkiewicz, Michal"]
[Black "Sternik, Piotr"]
[Result "1-0"]
[ECO "B90"]
[WhiteElo "2000"]
[BlackElo "1746"]
[Annotator "TA"]
[PlyCount "91"]
[EventDate "2023.03.11"]
[EventType "swiss"]
[EventCountry "POL"]
[SourceTitle "playchess.com"]
[Source "ChessBase"]
[SourceQuality "1"]
[TimeControl "40/5400+30:1800+30"]

{[%evp 14,91,54,51,73,79,120,104,103,39,27,20,12,21,81,75,90,86,91,61,75,75,77,76,90,86,83,43,69,27,32,28,91,89,110,111,178,153,139,56,222,191,234,201,404,405,416,421,401,391,410,404,402,383,442,452,443,427,737,708,708,711,696,696,1358,790,29968,29966,29958,29943,6099,546,1072,1047,29983,29984,29983,29984,29981,29982]} 1. e4 {[%emt 0:00:06]} c5 {[%emt 0:00:07]} 2. Nf3 {[%emt 0:00:04]} d6 {[%emt 0:00:04]} 3. d4 {[%emt 0:00:06]} cxd4 {[%emt 0:00:05]} 4. Nxd4 {[%emt 0:00:04]} Nf6 {[%emt 0:00:07]} 5. Nc3 {[%emt 0:00:03]} a6 {[%emt 0:00:18]} 6. Be3 {[%emt 0:00:05]} e5 {[%emt 0:01:59]} 7. Nf3 {[%emt 0:00:04]} Be6 {[%emt 0:01:29]} 8. Ng5 $1 {[%emt 0:00:54]} Qd7 {[%emt 0:18:51] B90: Sicilian Najdorf: Unusual White 6th moves, 6 Be3 Ng4 and 6 Be3 e5.} 9. Nxe6 {[%emt 0:01:21]} Qxe6 {[%emt 0:00:08]} 10. Be2 {[%emt 0:08:32] White is more active.} Be7 {[%emt 0:01:46] [#] White is better.} 11. Bg5 $146 {[%emt 0:06:03]} (11. g4 $16) ({Predecessor:} 11. g4 h6 12. h4 b5 13. a3 Nbd7 14. Rg1 Nc5 15. g5 Nfxe4 16. Nd5 Bd8 17. Bg4 {1-0 Dijkhuis,T (2402)-Briem,S (1890) Kopavogur Baldursson Memorial 2018 (1)}) 11... Nbd7 $14 {[%emt 0:07:45]} 12. b3 {[%emt 0:15:13]} Rc8 {[%emt 0:01:52]} 13. Bc4 {[%emt 0:04:21]} Rxc4 {[%emt 0:08:10]} (13... d5 $1 $11 14. Nxd5 (14. Bxd5 Nxd5 {[%mdl 64] Discovered Attack} 15. exd5 Qg6 $15) 14... Nxd5 15. Bxd5 Qg6 16. Bxe7 (16. Bxb7 Rc7 $11) 16... Qxg2) 14. bxc4 $16 {[%emt 0:00:36]} Qxc4 {[%emt 0:00:09]} 15. Qd3 $36 {[%emt 0:06:13][%mdl 2048] White has strong initiative.} Qc6 {[%emt 0:03:23]} 16. f3 {[%emt 0:07:27]} Nc5 {[%emt 0:03:18]} 17. Qd2 {[%emt 0:01:10]} h6 {[%emt 0:03:39]} 18. Be3 {[%emt 0:04:00]} O-O {[%emt 0:07:22]} 19. O-O {[%emt 0:03:17]} Rc8 {[%emt 0:03:20]} 20. Rfc1 {[%emt 0:02:11]} b5 {[%emt 0:06:42]} 21. Nd5 {[%emt 0:05:29]} Nxd5 {[%emt 0:00:20]} 22. exd5 {[%emt 0:00:07]} Qd7 {[%emt 0:02:08] [#]} (22... Qc7 $11) 23. c4 $1 {[%emt 0:01:08]} f5 {[%emt 0:12:07]} 24. cxb5 {[%emt 0:04:02]} Qxb5 {[%emt 0:01:41]} (24... axb5 $16 25. Rab1 Rb8) 25. Rab1 {[%emt 0:00:34]} Qd7 {[%emt 0:01:11]} 26. Qe2 {[%emt 0:01:37]} (26. Rc4 $16) 26... Qa7 $2 {[%emt 0:06:31] Black cannot hold the game after this.} ({Black should play} 26... Bg5 $14) 27. Rc4 {[%emt 0:03:15]} Bd8 {[%emt 0:01:49]} 28. Qc2 {[%emt 0:02:20]} f4 {[%emt 0:00:44]} (28... Qd7 {was worth a try.} 29. Kf1 (29. Bxc5 dxc5 30. Rd1 Be7 $18) 29... Be7) 29. Bxc5 $18 {[%emt 0:00:58]} Rxc5 {[%emt 0:00:07] Black is weak on the light squares} 30. Rxc5 {[%emt 0:00:05]} Bb6 {[%emt 0:00:20] [#]} 31. Qf5 $1 {[%emt 0:03:55]} Bxc5+ {[%emt 0:00:36][%mdl 4096] Endgame KQR-KQB} (31... Qc7 32. g3) 32. Kh1 {[%emt 0:00:14] Qc8+ would be deadly.} Qc7 {[%emt 0:00:37] Wards off Qc8+} 33. g3 {[%emt 0:04:22]} fxg3 {[%emt 0:02:35]} 34. hxg3 {[%emt 0:00:06]} a5 {[%emt 0:00:32]} 35. Rb3 {[%emt 0:02:46]} Bb4 {[%emt 0:00:18]} (35... Bb6 $142 36. Kg2 a4) 36. Qb1 {[%emt 0:02:36]} Qc8 {[%emt 0:04:56]} 37. Kg2 {[%emt 0:00:55] And now a3 would win.} e4 {[%emt 0:00:57]} 38. Qxe4 {[%emt 0:00:45]} Qc1 {[%emt 0:00:31]} 39. Re3 {[%emt 0:00:39]} Qd2+ {[%emt 0:00:23]} 40. Re2 {[%emt 0:00:00]} Qg5 {[%emt 0:00:00]} 41. Rc2 {[%emt 0:03:24]} Bc5 {[%emt 0:01:12]} 42. Rb2 {[%emt 0:00:09]} (42. Qe6+ $142 Kh7 43. Rxc5 dxc5 44. d6) 42... Qd8 {[%emt 0:00:45]} 43. Rb7 {[%emt 0:00:54] Qe6+ would kill now.} Bb4 {[%emt 0:05:48]} 44. Qe6+ {[%emt 0:00:21] White mates.} Kh7 {[%emt 0:00:30]} 45. Re7 {[%emt 0:00:56]} Bc3 {[%emt 0:01:29]} 46. Qe4+ {[%emt 0:00:07] Weighted Error Value: White=0.31/Black=0.56} 1-0